[Event "Mistrovství Čech mládeže 2023 - HD12"]
[Site "Harrachov, Czech Republic"]
[Date "2023.10.22"]
[Round "2.8"]
[White "Ježek, Jiří"]
[Black "Jenčová, Anna"]
[Result "1-0"]
[TimeControl "90m + 30s"]
[WhiteElo "1392"]
[BlackElo "1171"]

1. d4 {[%clk 01:30:56]} {[%emt 00:00:04]} d5 {[%clk 01:30:47]} {[%emt
00:00:13]} 2. Nf3 {[%clk 01:31:01]} {[%emt 00:00:24]} Nf6 {[%clk 01:30:35]}
{[%emt 00:00:43]} 3. c4 {[%clk 01:31:19]} {[%emt 00:00:13]} e6 {[%clk
01:29:50]} {[%emt 00:01:15]} 4. Nc3 {[%clk 01:31:30]} {[%emt 00:00:19]} Bb4
{[%clk 01:28:27]} {[%emt 00:01:52]} 5. Bg5 {[%clk 01:21:44]} {[%emt 00:10:16]}
dxc4 {[%clk 01:27:32]} {[%emt 00:01:25]} 6. e3 {[%clk 01:17:06]} {[%emt
00:05:09]} h6 {[%clk 01:26:30]} {[%emt 00:01:31]} 7. Bxf6 {[%clk 01:16:21]}
{[%emt 00:01:16]} Qxf6 {[%clk 01:25:34]} {[%emt 00:01:26]} 8. Bxc4 {[%clk
01:15:31]} {[%emt 00:01:19]} O-O {[%clk 01:23:05]} {[%emt 00:02:59]} 9. O-O
{[%clk 01:13:51]} {[%emt 00:02:10]} Nc6 {[%clk 01:21:45]} {[%emt 00:01:50]} 10.
a3 {[%clk 01:11:13]} {[%emt 00:03:08]} Bxc3 {[%clk 01:21:21]} {[%emt 00:00:54]}
11. bxc3 {[%clk 01:11:36]} {[%emt 00:00:08]} e5 {[%clk 01:20:25]} {[%emt
00:01:25]} 12. Bd3 {[%clk 01:01:59]} {[%emt 00:10:08]} exd4 {[%clk 01:18:47]}
{[%emt 00:02:07]} 13. cxd4 {[%clk 01:02:05]} {[%emt 00:00:24]} Re8 {[%clk
01:18:00]} {[%emt 00:01:16]} 14. Bb5 {[%clk 00:54:22]} {[%emt 00:08:14]} Re4
{[%clk 01:16:38]} {[%emt 00:01:49]} 15. Bxc6 {[%clk 00:46:34]} {[%emt
00:08:22]} bxc6 {[%clk 01:16:46]} {[%emt 00:00:21]} 16. Rc1 {[%clk 00:43:31]}
{[%emt 00:03:34]} Qg6 {[%clk 01:15:53]} {[%emt 00:01:15]} 17. Ne5 {[%clk
00:31:07]} {[%emt 00:13:01]} Qg5 {[%clk 01:14:54]} {[%emt 00:01:17]} 18. Qf3
{[%clk 00:28:01]} {[%emt 00:03:48]} Bf5 {[%clk 01:14:07]} {[%emt 00:01:15]} 19.
Rc5 {[%clk 00:25:28]} {[%emt 00:03:05]} f6 {[%clk 01:12:46]} {[%emt 00:01:51]}
20. Nxc6 {[%clk 00:23:08]} {[%emt 00:02:51]} g6 {[%clk 01:07:36]} {[%emt
00:05:38]} 21. Ne7+ {[%clk 00:21:52]} {[%emt 00:01:47]} Kf7 {[%clk 01:05:11]}
{[%emt 00:02:45]} 22. Nxf5 {[%clk 00:20:26]} {[%emt 00:02:06]} gxf5 {[%clk
01:04:48]} {[%emt 00:00:53]} 23. Rxf5 {[%clk 00:19:43]} {[%emt 00:01:13]} Qg6
{[%clk 01:04:48]} {[%emt 00:00:25]} 24. Qxe4 {[%clk 00:19:03]} {[%emt
00:01:14]} Re8 {[%clk 01:04:21]} {[%emt 00:00:42]} 25. Qf3 {[%clk 00:18:37]}
{[%emt 00:01:13]} a6 {[%clk 01:03:48]} {[%emt 00:01:02]} 26. Qh5 {[%clk
00:18:53]} {[%emt 00:00:14]} Qxh5 {[%clk 01:03:36]} {[%emt 00:00:42]} 27. Rxh5
{[%clk 00:19:14]} {[%emt 00:00:09]} Kg6 {[%clk 01:03:47]} {[%emt 00:00:19]} 28.
Rc5 {[%clk 00:18:44]} {[%emt 00:01:00]} Re7 {[%clk 01:03:31]} {[%emt 00:00:44]}
29. Rfc1 {[%clk 00:19:02]} {[%emt 00:00:14]} Rd7 {[%clk 01:03:08]} {[%emt
00:00:53]} 30. Rxc7 {[%clk 00:19:20]} {[%emt 00:00:13]} Rxc7 {[%clk 01:03:12]}
{[%emt 00:00:25]} 31. Rxc7 {[%clk 00:19:41]} {[%emt 00:00:08]} a5 {[%clk
01:03:18]} {[%emt 00:00:25]} 32. d5 {[%clk 00:19:41]} {[%emt 00:00:30]} Kf5
{[%clk 01:03:17]} {[%emt 00:00:27]} 33. Re7 {[%clk 00:20:04]} {[%emt 00:00:11]}
Kg6 {[%clk 01:02:46]} {[%emt 00:01:01]} 34. d6 {[%clk 00:19:32]} {[%emt
00:01:02]} a4 {[%clk 01:02:41]} {[%emt 00:00:36]} 35. d7 {[%clk 00:19:25]}
{[%emt 00:00:36]} Kg5 {[%clk 01:02:56]} {[%emt 00:00:15]} 36. d8=Q {[%clk
00:19:37]} {[%emt 00:00:19]} Kg6 {[%clk 01:02:48]} {[%emt 00:00:32]} 37. Qg8+
{[%clk 00:19:43]} {[%emt 00:00:27]} Kf5 {[%clk 01:02:51]} {[%emt 00:00:24]} 38.
e4+ {[%clk 00:19:47]} {[%emt 00:00:30]} Kf4 {[%clk 01:02:39]} {[%emt 00:00:42]}
39. Qg3# {[%clk 00:20:08]} {[%emt 00:00:09]} 1-0

[Event "Mistrovství Čech mládeže 2023 - HD12"]
[Site "Harrachov, Czech Republic"]
[Date "2023.10.22"]
[Round "2.9"]
[White "Mauric, Jan"]
[Black "Bukovskij, Dmitri"]
[Result "1-0"]
[TimeControl "90m + 30s"]
[WhiteElo "1260"]
[BlackElo "1391"]

1. d4 {[%clk 01:30:55]} {[%emt 00:00:05]} d5 {[%clk 01:31:23]} {[%emt
00:00:07]} 2. Bf4 {[%clk 01:31:16]} {[%emt 00:00:09]} Nf6 {[%clk 01:31:47]}
{[%emt 00:00:05]} 3. e3 {[%clk 01:29:45]} {[%emt 00:02:02]} c5 {[%clk
01:30:17]} {[%emt 00:02:00]} 4. c3 {[%clk 01:28:54]} {[%emt 00:01:21]} e6
{[%clk 01:28:59]} {[%emt 00:01:48]} 5. Nd2 {[%clk 01:25:58]} {[%emt 00:03:26]}
Bd6 {[%clk 01:27:53]} {[%emt 00:01:35]} 6. Bb5+ {[%clk 01:25:56]} {[%emt
00:00:33]} Nc6 {[%clk 01:26:58]} {[%emt 00:01:25]} 7. Bxc6+ {[%emt 00:02:27]}
bxc6 {[%clk 01:27:16]} {[%emt 00:00:10]} 8. Bg5 {[%clk 01:23:16]} {[%emt
00:01:15]} Ba6 {[%clk 01:26:27]} {[%emt 00:01:18]} 9. Ngf3 {[%clk 01:16:57]}
{[%emt 00:06:49]} cxd4 {[%clk 01:23:59]} {[%emt 00:02:59]} 10. Nxd4 {[%clk
01:13:45]} {[%emt 00:03:42]} c5 {[%clk 01:21:49]} {[%emt 00:02:40]} 11. Nxe6
{[%clk 01:10:40]} {[%emt 00:03:35]} fxe6 {[%clk 01:21:46]} {[%emt 00:00:33]} 12.
Qa4+ {[%clk 01:11:02]} {[%emt 00:00:08]} Qd7 {[%clk 01:19:10]} {[%emt
00:03:05]} 13. Qxa6 {[%clk 01:11:23]} {[%emt 00:00:10]} Rb8 {[%clk 01:18:41]}
{[%emt 00:00:59]} 14. b3 {[%clk 01:10:10]} {[%emt 00:01:43]} Be5 {[%clk
01:16:58]} {[%emt 00:02:12]} 15. Qd3 {[%clk 01:09:31]} {[%emt 00:01:09]} d4
{[%clk 01:09:51]} {[%emt 00:07:38]} 16. Nf3 {[%clk 01:06:51]} {[%emt 00:03:09]}
Ng4 {[%clk 01:08:26]} {[%emt 00:01:55]} 17. h3 {[%clk 01:03:51]} {[%emt
00:03:31]} dxe3 {[%clk 01:07:15]} {[%emt 00:01:40]} 18. Qxd7+ {[%clk 01:03:17]}
{[%emt 00:01:04]} Kxd7 {[%clk 01:07:33]} {[%emt 00:00:11]} 19. Rd1+ {[%clk
01:03:26]} {[%emt 00:00:22]} 1-0

[Event "Mistrovství Čech mládeže 2023 - HD12"]
[Site "Harrachov, Czech Republic"]
[Date "2023.10.22"]
[Round "2.11"]
[White "Ta, Xuan Nguyen"]
[Black "Křivka, Lukáš"]
[Result "1-0"]
[TimeControl "90m + 30s"]
[WhiteElo "1252"]
[BlackElo "1386"]

1. e4 {[%clk 01:30:57]} {[%emt 00:00:03]} c6 {[%clk 01:30:34]} {[%emt
00:00:27]} 2. d4 {[%clk 01:31:14]} {[%emt 00:00:13]} d5 {[%clk 01:30:35]}
{[%emt 00:00:29]} 3. f3 {[%clk 01:31:32]} {[%emt 00:00:11]} dxe4 {[%clk
01:29:37]} {[%emt 00:01:29]} 4. fxe4 {[%clk 01:31:52]} {[%emt 00:00:10]} e5
{[%clk 01:28:13]} {[%emt 00:01:54]} 5. Nf3 {[%clk 01:31:26]} {[%emt 00:00:56]}
exd4 {[%clk 01:24:36]} {[%emt 00:04:07]} 6. Nxd4 {[%clk 01:27:43]} {[%emt
00:04:12]} Qh4+ {[%clk 01:17:13]} {[%emt 00:07:53]} 7. g3 {[%clk 01:28:03]}
{[%emt 00:00:10]} Qxe4+ {[%clk 01:17:09]} {[%emt 00:00:35]} 8. Qe2 {[%clk
01:28:24]} {[%emt 00:00:08]} Qxe2+ {[%clk 01:13:16]} {[%emt 00:04:23]} 9. Bxe2
{[%clk 01:28:15]} {[%emt 00:00:40]} Nf6 {[%clk 01:10:44]} {[%emt 00:03:02]} 10.
Nc3 {[%clk 01:27:38]} {[%emt 00:01:06]} Be7 {[%clk 01:07:30]} {[%emt 00:03:44]}
11. Bf4 {[%clk 01:26:28]} {[%emt 00:01:19]} Bd7 {[%clk 00:51:43]} {[%emt
00:16:38]} 12. O-O-O {[%clk 01:24:38]} {[%emt 00:02:20]} O-O {[%clk 00:49:39]}
{[%emt 00:02:34]} 13. Nb3 {[%clk 01:21:52]} {[%emt 00:03:16]} Na6 {[%clk
00:38:55]} {[%emt 00:11:14]} 14. Bd6 {[%clk 01:19:42]} {[%emt 00:02:41]} Bxd6
{[%clk 00:33:36]} {[%emt 00:05:48]} 15. Rxd6 {[%clk 01:19:01]} {[%emt
00:01:11]} b5 {[%clk 00:31:40]} {[%emt 00:02:27]} 16. Bf3 {[%clk 01:17:11]}
{[%emt 00:02:20]} Rac8 {[%clk 00:30:49]} {[%emt 00:01:21]} 17. Nd4 {[%clk
01:13:24]} {[%emt 00:04:17]} Nb8 {[%clk 00:29:35]} {[%emt 00:01:44]} 18. Re1
{[%clk 01:12:01]} {[%emt 00:01:51]} Ne8 {[%clk 00:27:09]} {[%emt 00:02:58]} 19.
Rxd7 {[%clk 01:10:34]} {[%emt 00:01:57]} Nxd7 {[%clk 00:27:13]} {[%emt
00:00:26]} 20. Nxc6 {[%clk 01:10:13]} {[%emt 00:00:51]} Kh8 {[%clk 00:23:17]}
{[%emt 00:04:24]} 21. Nxb5 {[%clk 01:06:11]} {[%emt 00:04:33]} a6 {[%clk
00:19:09]} {[%emt 00:04:38]} 22. Nba7 {[%clk 01:01:49]} {[%emt 00:04:52]} Rc7
{[%clk 00:17:14]} {[%emt 00:02:25]} 23. h4 {[%clk 01:00:18]} {[%emt 00:02:01]}
Nef6 {[%clk 00:15:42]} {[%emt 00:02:02]} 24. Re7 {[%clk 00:59:20]} {[%emt
00:01:28]} Kg8 {[%clk 00:14:32]} {[%emt 00:01:40]} 25. g4 {[%clk 00:58:06]}
{[%emt 00:01:45]} Re8 {[%clk 00:12:31]} {[%emt 00:02:31]} 26. g5 {[%clk
00:57:02]} {[%emt 00:01:33]} Rxe7 {[%clk 00:12:54]} {[%emt 00:00:08]} 27. Nxe7+
{[%emt 00:00:14]} Kf8 {[%clk 00:13:08]} {[%emt 00:00:14]} 28. Nac6 {[%clk
00:56:07]} {[%emt 00:01:43]} Ne8 {[%clk 00:12:53]} {[%emt 00:00:44]} 29. Nf5
{[%clk 00:53:53]} {[%emt 00:02:43]} f6 {[%clk 00:12:12]} {[%emt 00:01:12]} 30.
Bd5 {[%clk 00:52:45]} {[%emt 00:01:38]} fxg5 {[%clk 00:11:40]} {[%emt
00:01:03]} 31. hxg5 {[%clk 00:52:39]} {[%emt 00:00:36]} Nb6 {[%clk 00:10:49]}
{[%emt 00:01:21]} 32. Be4 {[%clk 00:50:19]} {[%emt 00:02:49]} Kf7 {[%clk
00:09:36]} {[%emt 00:01:44]} 33. Nd8+ {[%clk 00:48:40]} {[%emt 00:02:08]} Kg8
{[%clk 00:09:40]} {[%emt 00:00:26]} 34. Bc6 {[%clk 00:48:30]} {[%emt 00:00:40]}
Nd7 {[%emt 00:01:47]} 35. Bd5+ {[%clk 00:47:34]} {[%emt 00:01:25]} Kh8 {[%clk
00:07:36]} {[%emt 00:01:19]} 36. Nf7+ {[%clk 00:47:17]} {[%emt 00:00:47]} Kg8
{[%clk 00:07:48]} {[%emt 00:00:17]} 37. Ne7+ {[%clk 00:44:05]} {[%emt
00:03:44]} Kf8 {[%clk 00:07:58]} {[%emt 00:00:19]} 38. g6 {[%clk 00:43:41]}
{[%emt 00:00:55]} h5 {[%clk 00:07:22]} {[%emt 00:01:05]} 39. Nf5 {[%clk
00:42:28]} {[%emt 00:01:43]} Nef6 {[%clk 00:06:54]} {[%emt 00:00:58]} 40. Bb3
{[%clk 00:39:55]} {[%emt 00:03:03]} Nc5 {[%clk 00:06:31]} {[%emt 00:00:54]} 41.
Bc4 {[%clk 00:39:34]} {[%emt 00:00:50]} a5 {[%clk 00:06:29]} {[%emt 00:00:33]}
42. Ng5 {[%clk 00:39:14]} {[%emt 00:00:50]} Nfe4 {[%clk 00:05:27]} {[%emt
00:01:32]} 43. Nh7+ {[%clk 00:38:18]} {[%emt 00:01:26]} Ke8 {[%clk 00:05:24]}
{[%emt 00:00:31]} 44. Bb5+ {[%clk 00:38:29]} {[%emt 00:00:21]} Nd7 {[%clk
00:04:45]} {[%emt 00:01:10]} 45. Nxg7+ {[%clk 00:38:35]} {[%emt 00:00:24]} Ke7
{[%clk 00:04:49]} {[%emt 00:00:26]} 46. Nf5+ {[%clk 00:37:25]} {[%emt
00:01:39]} Kd8 {[%clk 00:04:55]} {[%emt 00:00:24]} 47. g7 {[%clk 00:37:24]}
{[%emt 00:00:31]} Ndf6 {[%clk 00:04:36]} {[%emt 00:00:49]} 48. Nf8 {[%clk
00:37:17]} {[%emt 00:00:37]} Rc8 {[%clk 00:02:50]} {[%emt 00:02:16]} 49. Ne6#
{[%clk 00:37:12]} {[%emt 00:00:35]} 1-0

[Event "Mistrovství Čech mládeže 2023 - HD12"]
[Site "Harrachov, Czech Republic"]
[Date "2023.10.22"]
[Round "2.12"]
[White "Zeman, Jonáš"]
[Black "Černý, Rodan"]
[Result "1/2-1/2"]
[TimeControl "90m + 30s"]
[WhiteElo "1216"]
[BlackElo "1383"]

1. e4 {[%clk 01:30:55]} {[%emt 00:00:04]} e5 {[%clk 01:30:58]} {[%emt
00:00:02]} 2. Nc3 {[%clk 01:31:13]} {[%emt 00:00:12]} Nf6 {[%clk 01:31:22]}
{[%emt 00:00:06]} 3. f4 {[%clk 01:31:31]} {[%emt 00:00:12]} d5 {[%clk
01:31:42]} {[%emt 00:00:11]} 4. fxe5 {[%clk 01:31:47]} {[%emt 00:00:14]} Nxe4
{[%clk 01:32:10]} {[%emt 00:00:02]} 5. Nf3 {[%clk 01:31:53]} {[%emt 00:00:23]}
Nxc3 {[%clk 01:32:12]} {[%emt 00:00:28]} 6. bxc3 {[%clk 01:32:03]} {[%emt
00:00:20]} c5 {[%clk 01:32:31]} {[%emt 00:00:11]} 7. d4 {[%clk 01:31:40]}
{[%emt 00:00:53]} Nc6 {[%clk 01:31:25]} {[%emt 00:01:37]} 8. Bd3 {[%clk
01:29:03]} {[%emt 00:03:07]} c4 {[%clk 01:31:29]} {[%emt 00:00:26]} 9. Be2
{[%clk 01:29:11]} {[%emt 00:00:21]} Be7 {[%clk 01:31:52]} {[%emt 00:00:08]} 10.
O-O {[%clk 01:28:28]} {[%emt 00:01:12]} O-O {[%clk 01:30:34]} {[%emt 00:01:49]}
11. Qe1 {[%clk 01:25:21]} {[%emt 00:03:36]} Bf5 {[%clk 01:25:40]} {[%emt
00:05:24]} 12. Qg3 {[%clk 01:18:51]} {[%emt 00:07:00]} Bxc2 {[%clk 01:17:38]}
{[%emt 00:08:32]} 13. h4 {[%clk 01:11:51]} {[%emt 00:07:30]} Qd7 {[%clk
01:03:21]} {[%emt 00:14:47]} 14. h5 {[%clk 01:07:54]} {[%emt 00:04:27]} Nd8
{[%clk 00:56:23]} {[%emt 00:07:29]} 15. Bh6 {[%clk 00:47:43]} {[%emt 00:20:40]}
Ne6 {[%clk 00:55:01]} {[%emt 00:01:52]} 16. Ng5 {[%clk 00:43:50]} {[%emt
00:04:23]} Bxg5 {[%clk 00:50:14]} {[%emt 00:05:17]} 17. Bxg5 {[%clk 00:44:01]}
{[%emt 00:00:19]} Nxg5 {[%clk 00:50:34]} {[%emt 00:00:10]} 18. Qxg5 {[%clk
00:44:17]} {[%emt 00:00:13]} b5 {[%clk 00:47:47]} {[%emt 00:03:18]} 19. Bg4
{[%clk 00:34:50]} {[%emt 00:09:56]} Qd8 {[%clk 00:46:40]} {[%emt 00:01:37]} 20.
Rf6 {[%clk 00:30:06]} {[%emt 00:05:15]} h6 {[%clk 00:44:27]} {[%emt 00:02:43]}
21. Qf4 {[%clk 00:29:51]} {[%emt 00:00:45]} a5 {[%clk 00:21:19]} {[%emt
00:23:38]} 22. Rf1 {[%clk 00:27:37]} {[%emt 00:02:43]} Bd3 {[%clk 00:15:34]}
{[%emt 00:06:16]} 23. Rf2 {[%clk 00:27:39]} {[%emt 00:00:28]} b4 {[%clk
00:15:25]} {[%emt 00:00:40]} 24. Rxf7 {[%clk 00:20:40]} {[%emt 00:07:28]} bxc3
{[%clk 00:15:09]} {[%emt 00:00:46]} 25. Be6 {[%clk 00:15:36]} {[%emt 00:05:34]}
Rxf7 {[%clk 00:15:24]} {[%emt 00:00:15]} 26. Bxf7+ {[%clk 00:13:22]} {[%emt
00:02:44]} Kh8 {[%clk 00:15:40]} {[%emt 00:00:15]} 27. Bg6 {[%clk 00:13:08]}
{[%emt 00:00:43]} Rb8 {[%clk 00:11:24]} {[%emt 00:04:47]} 28. Kh2 {[%clk
00:12:26]} {[%emt 00:01:11]} c2 {[%clk 00:09:48]} {[%emt 00:02:07]} 29. g3
{[%clk 00:12:09]} {[%emt 00:00:47]} 1/2-1/2

[Event "Mistrovství Čech mládeže 2023 - HD12"]
[Site "Harrachov, Czech Republic"]
[Date "2023.10.22"]
[Round "2.13"]
[White "Kreuzman, Daniel"]
[Black "Fadrný, Jáchym"]
[Result "0-1"]
[TimeControl "90m + 30s"]
[WhiteElo "1169"]
[BlackElo "1365"]

1. e4 {[%clk 01:30:53]} {[%emt 00:00:06]} e6 {[%clk 01:30:48]} {[%emt
00:00:13]} 2. d4 {[%clk 01:31:03]} {[%emt 00:00:19]} d5 {[%clk 01:31:12]}
{[%emt 00:00:06]} 3. Nd2 {[%clk 01:31:27]} {[%emt 00:00:07]} c5 {[%clk
01:31:26]} {[%emt 00:00:16]} 4. exd5 {[%clk 01:31:47]} {[%emt 00:00:10]} Qxd5
{[%clk 01:31:06]} {[%emt 00:00:50]} 5. Ngf3 {[%clk 01:31:36]} {[%emt 00:00:41]}
Nc6 {[%clk 01:27:51]} {[%emt 00:03:44]} 6. Bb5 {[%clk 01:30:49]} {[%emt
00:01:17]} cxd4 {[%clk 01:26:10]} {[%emt 00:02:11]} 7. Bxc6+ {[%clk 01:30:16]}
{[%emt 00:01:02]} bxc6 {[%clk 01:22:28]} {[%emt 00:04:13]} 8. Nb3 {[%clk
01:28:56]} {[%emt 00:01:51]} e5 {[%clk 01:17:27]} {[%emt 00:05:30]} 9. O-O
{[%clk 01:28:46]} {[%emt 00:00:40]} Nf6 {[%clk 01:15:22]} {[%emt 00:02:36]} 10.
Re1 {[%clk 01:28:23]} {[%emt 00:00:53]} Bd6 {[%clk 01:12:53]} {[%emt 00:02:58]}
11. Nfxd4 {[%clk 01:27:04]} {[%emt 00:01:49]} O-O {[%clk 01:09:49]} {[%emt
00:03:34]} 12. Nf3 {[%clk 01:26:32]} {[%emt 00:01:02]} Re8 {[%clk 01:04:45]}
{[%emt 00:05:34]} 13. Bg5 {[%clk 01:22:38]} {[%emt 00:04:25]} Bg4 {[%clk
01:00:07]} {[%emt 00:05:06]} 14. Bxf6 {[%clk 01:20:28]} {[%emt 00:02:41]} gxf6
{[%clk 00:59:12]} {[%emt 00:01:26]} 15. Qxd5 {[%clk 01:20:09]} {[%emt
00:00:48]} cxd5 {[%clk 00:59:24]} {[%emt 00:00:18]} 16. Rad1 {[%clk 01:19:52]}
{[%emt 00:00:48]} Rad8 {[%clk 00:55:10]} {[%emt 00:04:44]} 17. h3 {[%clk
01:18:53]} {[%emt 00:01:28]} Bh5 {[%clk 00:52:23]} {[%emt 00:03:17]} 18. Rxd5
{[%clk 01:18:02]} {[%emt 00:01:22]} Bg6 {[%clk 00:44:52]} {[%emt 00:08:00]} 19.
c4 {[%clk 01:17:34]} {[%emt 00:00:57]} Bf5 {[%clk 00:38:10]} {[%emt 00:07:14]}
20. Red1 {[%clk 01:17:39]} {[%emt 00:00:25]} Bc7 {[%clk 00:34:06]} {[%emt
00:04:34]} 21. Rxd8 {[%clk 01:17:35]} {[%emt 00:00:34]} Rxd8 {[%clk 00:34:19]}
{[%emt 00:00:16]} 22. Rxd8+ {[%clk 01:18:00]} {[%emt 00:00:05]} Bxd8 {[%clk
00:34:41]} {[%emt 00:00:09]} 23. c5 {[%clk 01:15:34]} {[%emt 00:02:56]} Bb1
{[%clk 00:34:22]} {[%emt 00:00:48]} 24. a3 {[%clk 01:15:41]} {[%emt 00:00:24]}
Ba2 {[%clk 00:34:28]} {[%emt 00:00:23]} 25. Nbd2 {[%clk 01:15:51]} {[%emt
00:00:19]} Bd5 {[%clk 00:33:56]} {[%emt 00:01:03]} 26. Kf1 {[%clk 01:16:01]}
{[%emt 00:00:20]} Kf8 {[%clk 00:30:39]} {[%emt 00:03:47]} 27. Ke2 {[%clk
01:16:03]} {[%emt 00:00:26]} Ke7 {[%clk 00:30:20]} {[%emt 00:00:51]} 28. Kd3
{[%clk 01:14:23]} {[%emt 00:02:09]} Kd7 {[%clk 00:28:41]} {[%emt 00:02:11]} 29.
b4 {[%clk 01:13:22]} {[%emt 00:01:30]} Kc6 {[%clk 00:28:22]} {[%emt 00:00:49]}
30. a4 {[%clk 01:13:29]} {[%emt 00:00:24]} a5 {[%clk 00:27:09]} {[%emt
00:01:42]} 31. Kc3 {[%clk 01:13:25]} {[%emt 00:00:34]} Be7 {[%clk 00:22:49]}
{[%emt 00:04:51]} 32. Nb3 {[%clk 01:09:29]} {[%emt 00:04:26]} Bxb3 {[%clk
00:22:30]} {[%emt 00:00:49]} 33. b5+ {[%clk 01:09:08]} {[%emt 00:00:51]} Kxc5
{[%clk 00:21:01]} {[%emt 00:01:59]} 34. Kxb3 {[%clk 01:09:25]} {[%emt
00:00:12]} Kd5 {[%clk 00:19:21]} {[%emt 00:02:09]} 35. Nh4 {[%clk 01:09:00]}
{[%emt 00:00:57]} e4 {[%clk 00:17:18]} {[%emt 00:02:33]} 36. g3 {[%clk
01:08:58]} {[%emt 00:00:32]} Bc5 {[%clk 00:17:26]} {[%emt 00:00:22]} 37. f3
{[%clk 01:08:03]} {[%emt 00:01:21]} f5 {[%clk 00:15:48]} {[%emt 00:02:11]} 38.
fxe4+ {[%clk 01:07:41]} {[%emt 00:00:53]} Kxe4 {[%clk 00:14:33]} {[%emt
00:01:45]} 39. Kc2 {[%clk 01:06:01]} {[%emt 00:02:10]} Bf2 {[%clk 00:13:46]}
{[%emt 00:01:17]} 40. Ng2 {[%clk 01:05:41]} {[%emt 00:00:49]} Bxg3 {[%clk
00:12:57]} {[%emt 00:01:19]} 41. Kd2 {[%clk 01:05:42]} {[%emt 00:00:27]} f4
{[%clk 00:11:48]} {[%emt 00:01:41]} 42. Ne1 {[%clk 01:04:59]} {[%emt 00:01:06]}
f3 {[%clk 00:11:43]} {[%emt 00:00:42]} 43. Nc2 {[%clk 01:04:56]} {[%emt
00:00:30]} f2 {[%clk 00:11:15]} {[%emt 00:01:01]} 44. Ke2 {[%clk 01:05:20]}
{[%emt 00:00:04]} f5 {[%clk 00:10:41]} {[%emt 00:01:07]} 45. Na1 {[%clk
01:05:03]} {[%emt 00:00:44]} h5 {[%clk 00:08:31]} {[%emt 00:02:42]} 46. Nb3
{[%clk 01:05:17]} {[%emt 00:00:17]} Bc7 {[%clk 00:08:36]} {[%emt 00:00:23]} 47.
Kxf2 {[%clk 01:05:31]} {[%emt 00:00:17]} Kf4 {[%clk 00:08:52]} {[%emt
00:00:14]} 48. Nc5 {[%clk 01:05:40]} {[%emt 00:00:21]} Bb6 {[%clk 00:09:05]}
{[%emt 00:00:18]} 49. Kg2 {[%clk 01:05:14]} {[%emt 00:00:44]} Bxc5 {[%clk
00:09:28]} {[%emt 00:00:19]} 50. h4 {[%clk 01:03:54]} {[%emt 00:01:49]} Kg4
{[%clk 00:09:37]} {[%emt 00:00:21]} 51. Kh1 {[%clk 01:04:06]} {[%emt 00:00:16]}
f4 {[%clk 00:09:14]} {[%emt 00:00:55]} 52. Kg2 {[%clk 01:04:12]} {[%emt
00:00:25]} f3+ {[%clk 00:09:19]} {[%emt 00:00:22]} 53. Kf1 {[%clk 01:04:30]}
{[%emt 00:00:14]} f2 {[%clk 00:09:28]} {[%emt 00:00:21]} 54. Kg2 {[%clk
01:04:53]} {[%emt 00:00:08]} Kf4 {[%clk 00:09:09]} {[%emt 00:00:47]} 55. Kf1
{[%clk 01:05:21]} {[%emt 00:00:04]} Ke3 {[%clk 00:09:23]} {[%emt 00:00:15]} 56.
b6 {[%clk 01:05:32]} {[%emt 00:00:20]} Bxb6 {[%clk 00:09:36]} {[%emt 00:00:17]}
57. Kg2 {[%clk 01:05:58]} {[%emt 00:00:03]} Ke2 {[%clk 00:09:57]} {[%emt
00:00:09]} 58. Kg3 {[%clk 01:06:23]} {[%emt 00:00:06]} f1=Q {[%clk 00:09:54]}
{[%emt 00:00:31]} 59. Kh2 {[%clk 01:06:40]} {[%emt 00:00:11]} Bc7 {[%clk
00:10:13]} 0-1